[Event "Championnat du monde jeunes U12"]
[Date "2024.11.18"]
[White "Berdashkevich, Makar"]
[Black "Wijerathna, Vinuka Dihain"]
[WhiteElo "1848"]
[BlackElo "2004"]
[Round "4.26"]
[Result "1/2-1/2"]
[TimeControl "5400+30"]

1. e4 e5 {[%clk 1:30:43]} 2. Nf3 {[%clk 1:31:00]} 2... Nc6 {[%clk 1:31:05]} 3.
Bb5 {[%clk 1:31:06]} 3... a6 {[%clk 1:31:27]} 4. Ba4 {[%clk 1:31:31]} 4... Nf6
{[%clk 1:31:50]} 5. d3 {[%clk 1:31:12]} 5... b5 {[%clk 1:32:05]} 6. Bb3 {[%clk
1:31:31]} 6... Bc5 {[%clk 1:32:23]} 7. O-O {[%clk 1:31:01]} 7... d6 {[%clk
1:32:22]} 8. c3 {[%clk 1:30:53]} 8... h6 {[%clk 1:32:43]} 9. h3 {[%clk 1:30:24]}
9... O-O {[%clk 1:32:33]} 10. Re1 {[%clk 1:25:30]} 10... Bb6 {[%clk 1:28:03]}
11. Nbd2 {[%clk 1:24:37]} 11... Re8 {[%clk 1:28:07]} 12. a4 {[%clk 1:15:07]}
12... Rb8 {[%clk 1:24:40]} 13. Nf1 {[%clk 1:05:51]} 13... Ne7 {[%clk 1:15:54]}
14. Ng3 {[%clk 1:00:39]} 14... Ng6 {[%clk 1:14:22]} 15. Bc2 {[%clk 0:48:30]}
15... d5 {[%clk 1:02:03]} 16. Nf5 {[%clk 0:31:57]} 16... Bb7 {[%clk 0:55:34]}
17. Qe2 {[%clk 0:26:37]} 17... Qd7 {[%clk 0:52:06]} 18. g4 {[%clk 0:18:08]}
18... c5 {[%clk 0:36:22]} 19. axb5 {[%clk 0:12:34]} 19... axb5 {[%clk 0:36:29]}
20. Ng3 {[%clk 0:10:47]} 20... Nf4 {[%clk 0:20:31]} 21. Qf1 {[%clk 0:09:47]}
21... Qc7 {[%clk 0:18:49]} 22. exd5 {[%clk 0:03:08]} 22... Bxd5 {[%clk 0:18:06]}
23. Bxf4 {[%clk 0:01:26]} 23... exf4 {[%clk 0:18:26]} 24. Ne4 {[%clk 0:01:49]}
24... Qc6 {[%clk 0:13:42]} 25. Nfd2 {[%clk 0:00:56]} 25... Nxe4 {[%clk 0:07:11]}
26. dxe4 {[%clk 0:00:56]} 26... Be6 {[%clk 0:07:41]} 27. Nf3 {[%clk 0:00:56]}
27... Bc4 {[%clk 0:06:55]} 28. Bd3 {[%clk 0:00:58]} 28... Bxd3 {[%clk 0:07:02]}
29. Qxd3 {[%clk 0:01:23]} 29... Rbd8 {[%clk 0:07:29]} 30. Qc2 {[%clk 0:01:25]}
30... c4 {[%clk 0:07:17]} 31. Rad1 {[%clk 0:00:56]} 31... Rxd1 {[%clk 0:05:20]}
32. Qxd1 {[%clk 0:01:04]} 32... Rxe4 {[%clk 0:04:46]} 33. Rxe4 {[%clk 0:01:16]}
33... Qxe4 {[%clk 0:04:26]} 34. Kg2 {[%clk 0:01:40]} 34... g6 {[%clk 0:02:02]}
35. Qe1 {[%clk 0:01:02]} 35... Qd5 {[%clk 0:01:46]} 36. Qe8+ {[%clk 0:01:07]}
36... Kg7 {[%clk 0:01:34]} 37. Qe5+ {[%clk 0:00:45]} 37... Qxe5 {[%clk 0:01:58]}
38. Nxe5 {[%clk 0:01:10]} 38... f6 {[%clk 0:01:52]} 39. Nf3 {[%clk 0:01:21]}
39... Kf7 {[%clk 0:02:09]} 40. Kf1 {[%clk 0:01:26]} 40... g5 {[%clk 0:02:02]}
41. Ke2 {[%clk 0:01:28]} 41... Ke6 {[%clk 0:02:25]} 42. Nd2 {[%clk 0:01:18]}
42... Ke5 {[%clk 0:02:09]} 43. Nf3+ {[%clk 0:01:06]} 43... Ke6 {[%clk 0:02:18]}
44. Nd2 {[%clk 0:01:33]} 44... f5 {[%clk 0:02:34]} 45. Kf3 {[%clk 0:01:27]}
45... Bc5 {[%clk 0:02:34]} 46. Nf1 {[%clk 0:00:41]} 46... Kf6 {[%clk 0:02:31]}
47. Nd2 {[%clk 0:00:56]} 47... Kg6 {[%clk 0:02:19]} 48. Ke2 {[%clk 0:00:46]}
48... h5 {[%clk 0:01:05]} 49. f3 {[%clk 0:01:02]} 49... Be3 {[%clk 0:01:04]} 50.
Nb1 {[%clk 0:01:27]} 50... Bc5 {[%clk 0:01:11]} 51. Nd2 {[%clk 0:01:40]} 51...
hxg4 {[%clk 0:01:20]} 52. hxg4 {[%clk 0:01:55]} 52... Kf6 {[%clk 0:01:41]} 53.
gxf5 {[%clk 0:00:55]} 53... Kxf5 {[%clk 0:02:04]} 54. Ne4 {[%clk 0:01:14]} 54...
Be7 {[%clk 0:02:28]} 55. Nf2 {[%clk 0:01:19]} 55... Ke5 {[%clk 0:02:28]} 56.
Ng4+ {[%clk 0:01:24]} 56... Kd5 {[%clk 0:02:43]} 57. Nf2 {[%clk 0:01:34]} 57...
b4 {[%clk 0:02:19]} 58. cxb4 {[%clk 0:01:00]} 58... Bxb4 {[%clk 0:02:10]} 59.
Ne4 {[%clk 0:00:55]} 59... Be7 {[%clk 0:02:18]} 60. Nc3+ {[%clk 0:00:48]} 60...
Kc5 {[%clk 0:02:12]} 61. Kd2 {[%clk 0:00:42]} 61... Bd8 {[%clk 0:02:12]} 62.
Ne4+ {[%clk 0:00:38]} 62... Kd4 {[%clk 0:02:31]} 63. Nf2 {[%clk 0:00:49]} 63...
Ba5+ {[%clk 0:02:41]} 64. Ke2 {[%clk 0:01:06]} 64... Bb4 {[%clk 0:02:52]} 65.
Ng4 {[%clk 0:00:34]} 65... Bf8 {[%clk 0:02:25]} 66. Nf2 {[%clk 0:00:44]} 66...
Bg7 {[%clk 0:02:46]} 67. Kd2 {[%clk 0:01:02]} 67... Kd5 {[%clk 0:02:38]} 68. Kc2
{[%clk 0:00:54]} 68... Bd4 {[%clk 0:02:32]} 69. Ng4 {[%clk 0:00:53]} 69... Ke6
{[%clk 0:02:11]} 70. b3 {[%clk 0:00:46]} 70... c3 {[%clk 0:01:36]} 71. Kd3
{[%clk 0:01:00]} 71... Kd5 {[%clk 0:01:14]} 1/2-1/2

[Variant "Standard"]
[Site "Europe Echecs"]

[Event "Championnat du monde jeunes U12"]
[Date "2024.11.18"]
[White "Bocquenet-Drouode, Hugo"]
[Black "Ilcic, Aleksa"]
[WhiteElo "2002"]
[BlackElo "1757"]
[Round "4.27"]
[Result "1-0"]
[TimeControl "5400+30"]

1. e4 {[%clk 1:30:58]} 1... c5 {[%clk 1:28:27]} 2. Nf3 {[%clk 1:31:19]} 2... Nc6
{[%clk 1:28:51]} 3. Bb5 {[%clk 1:31:44]} 3... g6 {[%clk 1:28:10]} 4. O-O {[%clk
1:32:02]} 4... Bg7 {[%clk 1:28:31]} 5. c3 {[%clk 1:32:24]} 5... e5 {[%clk
1:28:05]} 6. d4 {[%clk 1:32:28]} 6... exd4 {[%clk 1:18:57]} 7. cxd4 {[%clk
1:32:48]} 7... Nxd4 {[%clk 1:04:18]} 8. Nxd4 {[%clk 1:33:09]} 8... Bxd4 {[%clk
0:56:51]} 9. Nc3 {[%clk 1:33:01]} 9... a6 {[%clk 0:54:54]} 10. Bc4 {[%clk
1:32:08]} 10... Bxc3 {[%clk 0:36:55]} 11. bxc3 {[%clk 1:31:59]} 11... Qf6 {[%clk
0:37:16]} 12. e5 {[%clk 1:28:47]} 12... Qe7 {[%clk 0:34:19]} 13. a4 {[%clk
1:27:08]} 13... b6 {[%clk 0:31:18]} 14. Rb1 {[%clk 1:25:17]} 14... Bb7 {[%clk
0:20:50]} 15. Rxb6 {[%clk 1:25:07]} 15... Bc6 {[%clk 0:21:05]} 16. Re1 {[%clk
1:17:10]} 16... Qd8 {[%clk 0:16:12]} 17. Qb3 {[%clk 1:15:37]} 17... Bxa4 {[%clk
0:06:40]} 18. Bxf7+ {[%clk 1:15:17]} 18... Kf8 {[%clk 0:06:48]} 19. Qd5 {[%clk
1:14:45]} 19... Qxb6 {[%clk 0:00:51]} 20. Bxg8 {[%clk 1:15:06]} 20... Rxg8
{[%clk 0:01:07]} 21. Bh6+ {[%clk 1:14:52]} 21... Ke7 {[%clk 0:01:13]} 22. Bg5+
{[%clk 1:15:17]} 22... Kf8 {[%clk 0:01:06]} 23. Qxa8+ {[%clk 1:15:40]} 23... Kf7
{[%clk 0:01:23]} 24. Qf3+ {[%clk 1:15:44]} 24... Ke8 {[%clk 0:01:32]} 25. e6
{[%clk 1:15:54]} 1-0

[Variant "Standard"]
[Site "Europe Echecs"]

[Event "Championnat du monde jeunes U12"]
[Date "2024.11.18"]
[White "Mikolavicius, Julius"]
[Black "Radnaev, Leo"]
[WhiteElo "1746"]
[BlackElo "1990"]
[Round "4.28"]
[Result "0-1"]
[TimeControl "5400+30"]

1. e4 {[%clk 1:30:59]} 1... c5 {[%clk 1:31:00]} 2. Nc3 {[%clk 1:31:12]} 2... Nc6
{[%clk 1:31:26]} 3. Bb5 {[%clk 1:31:33]} 3... Nd4 {[%clk 1:31:49]} 4. Bc4 {[%clk
1:31:50]} 4... a6 {[%clk 1:32:15]} 5. Nge2 {[%clk 1:31:38]} 5... b5 {[%clk
1:32:25]} 6. Bd5 {[%clk 1:31:02]} 6... Rb8 {[%clk 1:32:27]} 7. Nxd4 {[%clk
1:30:36]} 7... cxd4 {[%clk 1:32:50]} 8. Ne2 {[%clk 1:30:32]} 8... Nf6 {[%clk
1:32:50]} 9. Nxd4 {[%clk 1:22:49]} 9... Nxd5 {[%clk 1:31:47]} 10. exd5 {[%clk
1:23:05]} 10... Bb7 {[%clk 1:32:13]} 11. O-O {[%clk 1:21:54]} 11... Bxd5 {[%clk
1:29:23]} 12. b3 {[%clk 1:20:43]} 12... e6 {[%clk 1:16:33]} 13. Qe2 {[%clk
1:19:20]} 13... Be7 {[%clk 1:13:15]} 14. Bb2 {[%clk 1:10:56]} 14... Bf6 {[%clk
1:10:49]} 15. Rab1 {[%clk 0:58:43]} 15... O-O {[%clk 1:06:31]} 16. Qg4 {[%clk
0:51:50]} 16... g6 {[%clk 0:58:14]} 17. Ne2 {[%clk 0:46:51]} 17... Bxb2 {[%clk
0:55:44]} 18. Rxb2 {[%clk 0:46:24]} 18... Qf6 {[%clk 0:53:33]} 19. c3 {[%clk
0:44:46]} 19... Rbc8 {[%clk 0:48:00]} 20. Qf4 {[%clk 0:34:07]} 20... Qe7 {[%clk
0:45:49]} 21. Qe3 {[%clk 0:32:33]} 21... Rfd8 {[%clk 0:39:20]} 22. d3 {[%clk
0:31:08]} 22... Qd6 {[%clk 0:32:56]} 23. Rc1 {[%clk 0:30:09]} 23... Ba8 {[%clk
0:31:10]} 24. Rbc2 {[%clk 0:29:05]} 24... Qc6 {[%clk 0:29:35]} 25. f3 {[%clk
0:29:01]} 25... d6 {[%clk 0:25:02]} 26. Ng3 {[%clk 0:26:05]} 26... Qc5 {[%clk
0:24:13]} 27. d4 {[%clk 0:24:38]} 27... Qa3 {[%clk 0:20:41]} 28. Qg5 {[%clk
0:21:39]} 28... d5 {[%clk 0:15:02]} 29. Nh5 {[%clk 0:21:01]} 29... Qf8 {[%clk
0:14:29]} 30. Nf6+ {[%clk 0:21:14]} 30... Kh8 {[%clk 0:13:37]} 31. h4 {[%clk
0:20:27]} 31... Qg7 {[%clk 0:12:49]} 32. Ng4 {[%clk 0:19:27]} 32... Kg8 {[%clk
0:10:22]} 33. h5 {[%clk 0:19:29]} 33... gxh5 {[%clk 0:09:21]} 34. Qxh5 {[%clk
0:16:28]} 34... Kf8 {[%clk 0:09:18]} 35. Kf2 {[%clk 0:12:57]} 35... Ke7 {[%clk
0:06:25]} 36. Ne5 {[%clk 0:10:47]} 36... Rg8 {[%clk 0:05:55]} 37. g4 {[%clk
0:07:35]} 37... f6 {[%clk 0:05:49]} 38. Nd3 {[%clk 0:07:24]} 38... Bc6 {[%clk
0:05:39]} 39. Rh1 {[%clk 0:07:35]} 39... Rh8 {[%clk 0:03:04]} 40. Re2 {[%clk
0:07:52]} 40... Kd6 {[%clk 0:01:36]} 41. Nc5 {[%clk 0:08:06]} 41... Rce8 {[%clk
0:00:36]} 42. Rhe1 {[%clk 0:07:29]} 42... e5 {[%clk 0:00:43]} 43. Nxa6 {[%clk
0:06:59]} 43... Re7 {[%clk 0:00:33]} 44. Nb4 {[%clk 0:06:13]} 44... Be8 {[%clk
0:00:37]} 45. Qh2 {[%clk 0:06:12]} 45... h5 {[%clk 0:00:39]} 46. Qg2 {[%clk
0:05:10]} 46... hxg4 {[%clk 0:00:33]} 47. fxg4 {[%clk 0:05:26]} 47... Bf7 {[%clk
0:00:37]} 48. Rf1 {[%clk 0:05:17]} 48... Qg5 {[%clk 0:00:42]} 49. Nd3 {[%clk
0:01:30]} 49... e4 {[%clk 0:01:02]} 50. Qg3+ {[%clk 0:01:45]} 50... Kc6 {[%clk
0:01:15]} 51. Nb4+ {[%clk 0:01:52]} 51... Kd7 {[%clk 0:01:25]} 52. Na6 {[%clk
0:01:33]} 52... Kc6 {[%clk 0:01:28]} 53. Rb2 {[%clk 0:01:06]} 53... e3+ {[%clk
0:01:30]} 54. Ke2 {[%clk 0:01:17]} 54... Be6 {[%clk 0:01:47]} 55. Rg1 {[%clk
0:00:57]} 55... Qxg4+ {[%clk 0:00:42]} 56. Qxg4 {[%clk 0:00:36]} 56... Bxg4+
{[%clk 0:01:10]} 57. Ke1 {[%clk 0:00:53]} 57... f5 {[%clk 0:01:04]} 58. Nb4+
{[%clk 0:00:50]} 58... Kd6 {[%clk 0:01:33]} 59. Nd3 {[%clk 0:01:08]} 59... Reh7
{[%clk 0:00:52]} 60. Rbg2 {[%clk 0:01:04]} 60... Rh2 {[%clk 0:00:36]} 61. Kf1
{[%clk 0:00:42]} 61... Bh3 {[%clk 0:00:46]} 62. Nf4 {[%clk 0:00:47]} 62... Bxg2+
{[%clk 0:00:53]} 63. Rxg2 {[%clk 0:01:12]} 63... Rxg2 {[%clk 0:00:56]} 64. Kxg2
{[%clk 0:01:35]} 64... Rh4 {[%clk 0:00:52]} 65. Nd3 {[%clk 0:01:49]} 65... f4
{[%clk 0:00:35]} 66. Kf3 {[%clk 0:02:11]} 66... Ke6 {[%clk 0:00:32]} 67. a4
{[%clk 0:02:29]} 67... bxa4 {[%clk 0:00:48]} 68. bxa4 {[%clk 0:02:58]} 68... Kf5
{[%clk 0:01:08]} 69. Ne5 {[%clk 0:02:57]} 69... Rh3+ {[%clk 0:01:24]} 70. Ke2
{[%clk 0:03:25]} 70... Ke4 {[%clk 0:01:45]} 71. a5 {[%clk 0:03:46]} 71... f3+
{[%clk 0:02:05]} 72. Kd1 {[%clk 0:04:12]} 72... Rh1+ {[%clk 0:02:20]} 73. Kc2
{[%clk 0:04:38]} 73... f2 0-1

[Variant "Standard"]
[Site "Europe Echecs"]

[Event "Championnat du monde jeunes U12"]
[Date "2024.11.18"]
[White "Qu, Haoming"]
[Black "Yu, Zhe"]
[WhiteElo "1969"]
[BlackElo "1697"]
[Round "4.29"]
[Result "1-0"]
[TimeControl "5400+30"]

1. e4 {[%clk 1:30:57]} 1... d5 {[%clk 1:27:57]} 2. exd5 {[%clk 1:31:14]} 2...
Qxd5 {[%clk 1:28:21]} 3. Nc3 {[%clk 1:31:42]} 3... Qa5 {[%clk 1:28:47]} 4. d4
{[%clk 1:32:00]} 4... Nf6 {[%clk 1:29:13]} 5. Nf3 {[%clk 1:32:26]} 5... Bf5
{[%clk 1:28:52]} 6. Ne5 {[%clk 1:31:41]} 6... c6 {[%clk 1:28:30]} 7. Bc4 {[%clk
1:30:35]} 7... e6 {[%clk 1:27:50]} 8. g4 {[%clk 1:30:52]} 8... Be4 {[%clk
1:27:05]} 9. O-O {[%clk 1:30:23]} 9... Bd5 {[%clk 1:25:21]} 10. Nxd5 {[%clk
1:30:28]} 10... cxd5 {[%clk 1:24:58]} 11. Bd3 {[%clk 1:30:50]} 11... Nc6 {[%clk
1:24:29]} 12. Nxc6 {[%clk 1:24:31]} 12... bxc6 {[%clk 1:24:52]} 13. Qf3 {[%clk
1:24:50]} 13... Be7 {[%clk 1:19:18]} 14. c3 {[%clk 1:21:26]} 14... Qd8 {[%clk
1:02:38]} 15. Re1 {[%clk 1:13:03]} 15... h6 {[%clk 0:38:48]} 16. Bf4 {[%clk
0:56:00]} 16... g5 {[%clk 0:31:25]} 17. Bg3 {[%clk 0:35:00]} 17... h5 {[%clk
0:21:51]} 18. h3 {[%clk 0:34:55]} 18... hxg4 {[%clk 0:21:16]} 19. hxg4 {[%clk
0:35:17]} 19... Kd7 {[%clk 0:19:33]} 20. b4 {[%clk 0:29:06]} 20... Qb6 {[%clk
0:14:27]} 21. a4 {[%clk 0:22:36]} 21... a6 {[%clk 0:14:29]} 22. Reb1 {[%clk
0:19:59]} 22... Rh6 {[%clk 0:12:07]} 23. a5 {[%clk 0:17:23]} 23... Qa7 {[%clk
0:11:48]} 24. Kg2 {[%clk 0:17:15]} 24... Qb7 {[%clk 0:09:53]} 25. Rh1 {[%clk
0:17:03]} 25... Rah8 {[%clk 0:09:52]} 26. Rxh6 {[%clk 0:17:19]} 26... Rxh6
{[%clk 0:10:20]} 27. Rh1 {[%clk 0:17:48]} 27... Rxh1 {[%clk 0:10:03]} 28. Kxh1
{[%clk 0:18:17]} 28... c5 {[%clk 0:08:29]} 29. dxc5 {[%clk 0:16:02]} 29... Ne4
{[%clk 0:08:37]} 30. Kh2 {[%clk 0:10:47]} 30... Ke8 {[%clk 0:07:13]} 31. Be5
{[%clk 0:06:46]} 31... f6 {[%clk 0:06:32]} 32. Bg3 {[%clk 0:06:56]} 32... Kf8
{[%clk 0:03:52]} 33. Qe2 {[%clk 0:05:20]} 33... f5 {[%clk 0:03:10]} 34. Be5
{[%clk 0:03:54]} 34... Bd8 {[%clk 0:03:15]} 35. gxf5 {[%clk 0:03:30]} 35... exf5
{[%clk 0:03:34]} 36. Qh5 {[%clk 0:03:32]} 36... Bf6 {[%clk 0:02:09]} 37. Qh6+
{[%clk 0:03:41]} 37... Qg7 {[%clk 0:02:00]} 38. Qxg7+ {[%clk 0:04:03]} 38...
Kxg7 {[%clk 0:02:27]} 39. Bxf6+ {[%clk 0:04:21]} 39... Kxf6 {[%clk 0:02:37]} 40.
Bxe4 {[%clk 0:04:15]} 40... dxe4 {[%clk 0:02:53]} 41. b5 {[%clk 0:04:39]} 41...
axb5 {[%clk 0:02:21]} 42. a6 {[%clk 0:05:08]} 42... Ke5 {[%clk 0:02:28]} 43. a7
{[%clk 0:05:33]} 43... Kd5 {[%clk 0:02:55]} 44. a8=Q+ Kxc5 {[%clk 0:03:19]} 45.
Qf8+ {[%clk 0:06:24]} 45... Kc4 {[%clk 0:03:45]} 46. Qxf5 {[%clk 0:06:48]} 46...
Kxc3 {[%clk 0:04:12]} 47. Qxb5 {[%clk 0:07:13]} 47... Kd2 {[%clk 0:04:25]} 48.
Qxg5+ {[%clk 0:07:39]} 48... Ke2 {[%clk 0:04:52]} 49. Qe3+ {[%clk 0:08:06]}
49... Kf1 {[%clk 0:05:18]} 50. Kg3 {[%clk 0:08:27]} 50... Kg1 {[%clk 0:05:26]}
51. Qe1# {[%clk 0:08:55]} 1-0

[Variant "Standard"]
[Site "Europe Echecs"]

[Event "Championnat du monde jeunes U12"]
[Date "2024.11.18"]
[White "Miransh Vyas"]
[Black "Gao, Heye"]
[WhiteElo "1705"]
[BlackElo "1933"]
[Round "4.30"]
[Result "0-1"]
[TimeControl "5400+30"]

1. e4 {[%clk 1:30:20]} 1... e5 {[%clk 1:30:15]} 2. Nc3 {[%clk 1:30:41]} 2... Nf6
{[%clk 1:28:32]} 3. Bc4 {[%clk 1:30:37]} 3... Bc5 {[%clk 1:27:52]} 4. d3 {[%clk
1:30:41]} 4... Nc6 {[%clk 1:27:24]} 5. f4 {[%clk 1:30:33]} 5... d6 {[%clk
1:26:11]} 6. Nf3 {[%clk 1:30:50]} 6... Ng4 {[%clk 1:21:21]} 7. Ng5 {[%clk
1:30:27]} 7... O-O {[%clk 1:17:40]} 8. f5 {[%clk 1:12:30]} 8... Nf6 {[%clk
1:15:46]} 9. Na4 {[%clk 0:59:48]} 9... Bb6 {[%clk 1:12:45]} 10. Nxb6 {[%clk
0:44:11]} 10... axb6 {[%clk 1:12:27]} 11. O-O {[%clk 0:39:05]} 11... Na5 {[%clk
1:09:17]} 12. Qe2 {[%clk 0:34:31]} 12... Bd7 {[%clk 1:06:17]} 13. Bd5 {[%clk
0:23:56]} 13... h6 {[%clk 1:04:18]} 14. Nh3 {[%clk 0:20:48]} 14... c6 {[%clk
1:00:22]} 15. Bxf7+ {[%clk 0:20:11]} 15... Rxf7 {[%clk 0:58:40]} 16. b4 {[%clk
0:20:28]} 16... Qe7 {[%clk 0:54:07]} 17. bxa5 {[%clk 0:20:20]} 17... bxa5 {[%clk
0:49:08]} 18. g4 {[%clk 0:18:48]} 18... d5 {[%clk 0:45:44]} 19. g5 {[%clk
0:18:06]} 19... hxg5 {[%clk 0:44:24]} 20. Nxg5 {[%clk 0:18:23]} 20... Rff8
{[%clk 0:44:09]} 21. Kh1 {[%clk 0:17:52]} 21... dxe4 {[%clk 0:40:35]} 22. dxe4
{[%clk 0:17:56]} 22... b5 {[%clk 0:39:12]} 23. Rf3 {[%clk 0:16:34]} 23... c5
{[%clk 0:36:24]} 24. a4 {[%clk 0:15:19]} 24... Rfb8 {[%clk 0:35:25]} 25. Bd2
{[%clk 0:14:10]} 25... Bc6 {[%clk 0:33:20]} 26. Rg1 {[%clk 0:13:40]} 26... Ra7
{[%clk 0:32:22]} 27. axb5 {[%clk 0:12:16]} 27... Bxb5 {[%clk 0:32:33]} 28. Qe3
{[%clk 0:12:26]} 28... Bc6 {[%clk 0:30:42]} 29. Qe2 {[%clk 0:10:52]} 29... Bb5
{[%clk 0:30:12]} 30. c4 {[%clk 0:09:13]} 30... Bc6 {[%clk 0:30:04]} 31. Re3
{[%clk 0:09:09]} 31... Qb7 {[%clk 0:28:08]} 32. h4 {[%clk 0:08:42]} 32... a4
{[%clk 0:26:36]} 33. Kh2 {[%clk 0:08:13]} 33... Qb2 {[%clk 0:25:14]} 34. Reg3
{[%clk 0:05:23]} 34... Rd8 {[%clk 0:24:37]} 35. R1g2 {[%clk 0:04:11]} 35... a3
{[%clk 0:19:17]} 36. Qe3 {[%clk 0:03:11]} 36... Nxe4 {[%clk 0:15:53]} 37. Nxe4
{[%clk 0:03:06]} 37... Bxe4 {[%clk 0:15:36]} 38. Bc3 {[%clk 0:02:00]} 38... Bxg2
{[%clk 0:09:53]} 39. Qxe5 {[%clk 0:01:26]} 39... Qb8 {[%clk 0:08:33]} 40. Qe6+
{[%clk 0:01:25]} 40... Rf7 {[%clk 0:07:50]} 41. Kxg2 {[%clk 0:01:34]} 41... Qb7+
{[%clk 0:07:57]} 42. Kh3 {[%clk 0:01:44]} 42... Qh1+ {[%clk 0:07:59]} 43. Kg4
{[%clk 0:02:00]} 43... a2 {[%clk 0:07:36]} 44. Qe5 {[%clk 0:01:48]} 44... Rfd7
{[%clk 0:05:42]} 45. Qe6+ {[%clk 0:01:58]} 45... Kf8 {[%clk 0:06:01]} 46. f6
{[%clk 0:02:04]} 46... a1=Q 47. Bxa1 {[%clk 0:02:05]} 47... Qxa1 {[%clk
0:05:14]} 48. Kh5 {[%clk 0:02:20]} 48... Qxf6 {[%clk 0:05:15]} 49. Qxf6+ {[%clk
0:01:30]} 49... gxf6 {[%clk 0:05:38]} 50. Rf3 {[%clk 0:01:53]} 50... Kf7 {[%clk
0:06:02]} 51. Rf5 {[%clk 0:02:17]} 51... Rd4 {[%clk 0:06:17]} 52. Rxf6+ {[%clk
0:02:34]} 52... Kxf6 {[%clk 0:06:41]} 53. Kh6 {[%clk 0:03:00]} 53... Rxh4# 0-1

[Variant "Standard"]
[Site "Europe Echecs"]

[Event "Championnat du monde jeunes U12"]
[Date "2024.11.18"]
[White "Shirinov, Yashar"]
[Black "Zhandos, Akarys"]
[WhiteElo "1642"]
[BlackElo "1932"]
[Round "4.31"]
[Result "0-1"]
[TimeControl "5400+30"]

1. d4 {[%clk 1:30:58]} 1... Nf6 {[%clk 1:30:20]} 2. c4 {[%clk 1:31:23]} 2... e6
{[%clk 1:30:29]} 3. Nc3 {[%clk 1:30:53]} 3... Bb4 {[%clk 1:30:28]} 4. Qc2 {[%clk
1:31:15]} 4... O-O {[%clk 1:30:07]} 5. a3 {[%clk 1:31:08]} 5... Bxc3+ {[%clk
1:28:53]} 6. Qxc3 {[%clk 1:31:33]} 6... d5 {[%clk 1:28:28]} 7. Nf3 {[%clk
1:31:54]} 7... h6 {[%clk 1:24:09]} 8. Bf4 {[%clk 1:32:03]} 8... c5 {[%clk
1:23:58]} 9. e3 {[%clk 1:22:07]} 9... b6 {[%clk 1:21:37]} 10. Bd3 {[%clk
1:13:33]} 10... Bb7 {[%clk 1:19:05]} 11. Rd1 {[%clk 1:09:24]} 11... Nbd7 {[%clk
1:17:27]} 12. Ne5 {[%clk 1:07:23]} 12... Rc8 {[%clk 1:15:22]} 13. O-O {[%clk
1:04:06]} 13... Nxe5 {[%clk 1:08:02]} 14. Bxe5 {[%clk 1:02:19]} 14... Nd7 {[%clk
1:04:42]} 15. Bd6 {[%clk 0:50:11]} 15... Re8 {[%clk 1:04:22]} 16. dxc5 {[%clk
0:49:49]} 16... Nxc5 {[%clk 0:55:42]} 17. Bxc5 {[%clk 0:50:12]} 17... Rxc5
{[%clk 0:55:34]} 18. b4 {[%clk 0:48:27]} 18... Rc8 {[%clk 0:53:11]} 19. c5
{[%clk 0:48:45]} 19... bxc5 {[%clk 0:52:52]} 20. bxc5 {[%clk 0:49:11]} 20... Qg5
{[%clk 0:53:09]} 21. Qb4 {[%clk 0:48:56]} 21... Bc6 {[%clk 0:52:52]} 22. Bb5
{[%clk 0:45:45]} 22... Qe7 {[%clk 0:47:28]} 23. Rc1 {[%clk 0:44:28]} 23... e5
{[%clk 0:45:03]} 24. Bxc6 {[%clk 0:43:16]} 24... Rxc6 {[%clk 0:45:32]} 25. Rfd1
{[%clk 0:43:36]} 25... Rd8 {[%clk 0:45:06]} 26. Qb5 {[%clk 0:43:13]} 26... Qe6
{[%clk 0:45:04]} 27. h3 {[%clk 0:40:30]} 27... f5 {[%clk 0:41:34]} 28. Rc2
{[%clk 0:32:26]} 28... f4 {[%clk 0:39:43]} 29. exf4 {[%clk 0:32:17]} 29... exf4
{[%clk 0:40:06]} 30. Re2 {[%clk 0:32:11]} 30... Qc8 {[%clk 0:34:20]} 31. Rc2
{[%clk 0:29:36]} 31... f3 {[%clk 0:34:04]} 32. Qb3 {[%clk 0:29:55]} 32... Qf5
{[%clk 0:33:02]} 33. Qd3 {[%clk 0:27:51]} 33... Qxd3 {[%clk 0:33:01]} 34. Rxd3
{[%clk 0:28:17]} 34... fxg2 {[%clk 0:33:26]} 35. Kxg2 {[%clk 0:28:42]} 35... Kf7
{[%clk 0:30:58]} 36. Kf3 {[%clk 0:29:08]} 36... g5 {[%clk 0:30:58]} 37. Ke3
{[%clk 0:28:01]} 37... Ke6 {[%clk 0:31:07]} 38. Kd4 {[%clk 0:28:11]} 38... Kd7
{[%clk 0:20:34]} 39. Rf3 {[%clk 0:26:35]} 39... Kc7 {[%clk 0:16:25]} 40. Rf7+
{[%clk 0:26:49]} 40... Rd7 {[%clk 0:16:54]} 41. Rxd7+ {[%clk 0:27:09]} 41...
Kxd7 {[%clk 0:17:23]} 42. Kxd5 {[%clk 0:27:04]} 42... Rf6 {[%clk 0:15:24]} 43.
Re2 {[%clk 0:23:45]} 43... Rf5+ {[%clk 0:13:01]} 44. Re5 {[%clk 0:24:00]} 44...
Rf3 {[%clk 0:12:04]} 45. c6+ {[%clk 0:24:20]} 45... Kd8 {[%clk 0:12:32]} 46. Kd6
{[%clk 0:20:41]} 46... Rd3+ {[%clk 0:12:26]} 47. Kc5 {[%clk 0:20:59]} 47... Rxa3
{[%clk 0:12:25]} 48. h4 {[%clk 0:19:22]} 48... Ra5+ {[%clk 0:11:50]} 49. Kd6
{[%clk 0:19:47]} 49... Rxe5 {[%clk 0:12:16]} 50. Kxe5 {[%clk 0:20:14]} 50...
gxh4 {[%clk 0:12:36]} 51. Kf4 {[%clk 0:20:29]} 51... a5 {[%clk 0:12:58]} 52. Kg4
{[%clk 0:20:56]} 52... a4 {[%clk 0:13:24]} 53. f4 {[%clk 0:21:22]} 53... a3
{[%clk 0:13:53]} 54. f5 {[%clk 0:21:49]} 54... a2 {[%clk 0:14:21]} 55. f6 {[%clk
0:22:12]} 55... a1=Q {[%clk 0:14:45]} 56. f7 {[%clk 0:22:31]} 56... Qf6 {[%clk
0:15:11]} 57. Kh5 {[%clk 0:22:59]} 57... Qg5# {[%clk 0:15:35]} 0-1

[Variant "Standard"]
[Site "Europe Echecs"]